Cogmind - Beta 13 @@@ ROGUE MODE // 2024.07.07 @ 08:01:28 Player: SyrupyWaffles Result: Destroyed by S-10 Pest with Light Assault Rifle Performance ------------- Evolutions (0) 0 Regions Visited (1) 200 Robots Destroyed (15) 75 Value Destroyed (271) 271 Prototype IDs (0) 0 Alien Tech Used (0) 0 Bonus (0) 0 TOTAL SCORE: 546 Bonus ------- None Cogmind --------- Core Integrity 0/250 Matter 211/300 Energy 100/100 System Corruption 0% Temperature Cool (0) Movement Core (700) Ox13 Location -10/Materials Parts ------- > --- POWER (1) -------- (None) > --- PROPULSION (2) --- (None) > --- UTILITY (2) ------ High-capacity Storage Unit Visual Processing Unit > --- WEAPON (2) ------- (None) > --- INVENTORY (20) --- Ion Engine Light Ion Engine Hover Unit Improved Heat Sink Large Storage Unit High-capacity Storage Unit High-capacity Matter Pod (0) Sensor Array Signal Interpreter Light Armor Plating Light Armor Plating EM Pulse Gun Medium Laser Medium Laser Beam Cannon Beam Cannon Assault Rifle Light Assault Rifle Datajack Datajack Peak State ------------ > --- POWER ------------ Light Ion Engine > --- PROPULSION ------- Light Treads Wheel > --- UTILITY ---------- High-capacity Storage Unit Visual Processing Unit > --- WEAPON ----------- Medium Laser Grenade Launcher > --- INVENTORY -------- Ion Engine Light Ion Engine Hover Unit Improved Heat Sink Large Storage Unit High-capacity Storage Unit Sensor Array Signal Interpreter Light Armor Plating Light Armor Plating EM Pulse Gun Medium Laser Medium Laser Beam Cannon Beam Cannon Assault Rifle Datajack Datajack [Rating: 10] Favorites ----------- Power Light Ion Engine Engine Light Ion Engine Propulsion Wheel Treads Light Treads Leg Aluminum Leg Wheel Wheel Utility High-capacity Storage Unit Device Heat Sink Storage High-capacity Storage Unit Processor Visual Processing Unit Weapon Medium Laser Energy Gun Medium Laser Launcher Grenade Launcher Special Melee Weapon Datajack Build | -11 -10 ------- Run | Yrd Mat Slots Evolved . | . . Power . | . . Propulsion . | . . Utility . | . . Weapon . | . . Parts Attached 17 | 7 10 Power 2 | 1 1 Engine 2 | 1 1 Core . | . . Reactor . | . . Propulsion 5 | 4 1 Treads 1 | . 1 Leg 2 | 2 . Wheel 2 | 2 . Hover . | . . Flight . | . . Utility 5 | . 5 Device 1 | . 1 Storage 3 | . 3 Processor 1 | . 1 Hackware . | . . Protection . | . . Artifact . | . . Weapon 5 | 2 3 Energy Gun 3 | 2 1 Energy Cannon . | . . Ballistic Gun . | . . Ballistic Cannon . | . . Launcher 1 | . 1 Special Weapon . | . . Impact Weapon . | . . Slashing Weapon . | . . Piercing Weapon . | . . Special Melee Weapon 1 | . 1 Unidentified Prototypes . | . . Parts Lost 5 | . 5 Power 1 | . 1 Propulsion 2 | . 2 Utility . | . . Weapon 2 | . 2 Highest Loss Streak 5 | . 5 To Critical Strikes . | . . Average Slot Usage (%) 85 | . 85 Engine 12 | . 12 Treads 4 | . 4 Wheel 21 | . 21 Storage 11 | . 11 Processor 9 | . 9 Energy Gun 13 | . 13 Launcher 10 | . 10 Naked Turns . | . . Heaviest Build 48 | 7 48 Greatest Support 20 | 20 20 Greatest Overweight (x) 14 | . 14 Average Overweight (x) 1 | . 2 Largest Inventory Capacity 20 | 5 20 Average Capacity 15 | 5 17 Most Carried 20 | 5 20 Average Carried 11 | 2 13 Final Capacity 20 | 5 20 Final Carried 20 | 4 20 Class Distribution -------------------- 100% | Mutant Dominant Class ---------------- Mutant | -10/Materials Resources | -11 -10 ----------- Run | Yrd Mat Matter Collected 383 | 270 113 Remotely . | . . Salvage Created 269 | 40 229 Parts 24 | 1 23 Haulers Intercepted . | . . Recyclers Shooed 1 | . 1 Parts Field Recycled . | . . Retrieved Matter . | . . Parts Self-Destructed . | . . Prevented . | . . Kills | -11 -10 ------- Run | Yrd Mat Combat Hostiles Destroyed 9 | 1 8 Guns 1 | . 1 AOE 7 | . 7 Classes Destroyed 5 | 1 4 Worker 1 | . 1 Builder 3 | . 3 Watcher 2 | . 2 Swarmer 4 | . 4 Grunt 5 | 1 4 Best Kill Streak 4 | 1 4 Combat Bots Only 3 | 1 3 Max Kills in Single Turn 2 | 1 2 Gunslinging . | . . Exploded 2 | . 2 Melee . | . . Uniques/NPCs Destroyed . | . . Combat | -11 -10 -------- Run | Yrd Mat Hostile Shots Fired 135 | 9 126 Missed 43 | 5 38 Damage Taken 849 | 44 805 Core 253 | 12 241 Absorbed by Shields . | . . Core Remaining (%) 95 | 95 . Volleys Fired 27 | 6 21 Largest 2 | 2 2 Hottest 90 | 90 80 Shots Fired 46 | 12 34 Gun 33 | 12 21 Cannon . | . . Launcher 13 | . 13 Special . | . . Kinetic . | . . Thermal 27 | 6 21 Explosive 13 | . 13 Electromagnetic 6 | 6 . Robot Hit Streak 5 | 5 4 Robot Miss Streak 2 | 1 2 Penetration Max . | . . Secondary Targets . | . . Shots Hit Robots 22 | 9 13 Core Hits 25 | 1 24 Critical Kills . | . . Critical Parts Destroyed . | . . Critical Strikes 1 | 1 . Burn 1 | 1 . Melee Attacks . | . . Impact . | . . Slashing . | . . Piercing . | . . Sneak Attacks . | . . Combat Hostiles . | . . Follow-up Attacks . | . . Damage Inflicted 1073 | 117 956 Guns 252 | 117 135 Cannons . | . . Explosions 812 | . 812 Melee . | . . Ramming 9 | . 9 Kinetic . | . . Thermal 211 | 76 135 Explosive 812 | . 812 Electromagnetic 41 | 41 . Impact . | . . Slashing . | . . Piercing . | . . Highest Corruption . | . . Average Corruption . | . . Corruption Purged . | . . Corruption Blocked . | . . Overload Shots . | . . Overflow Damage 10 | . 10 Projectiles . | . . Explosions 10 | . 10 Melee . | . . Knockbacks . | . . Impact . | . . Kinetic . | . . Secondary . | . . Self-Inflicted Damage 67 | . 67 Shots 3 | . 3 Rammed 1 | . 1 Targets Rammed 1 | . 1 Kicked . | . . Crushed . | . . Highest Temperature 164 | 164 146 Average Temperature 53 | 85 41 Received Heat Transfer 114 | 24 90 Siege Activations . | . . Robots Corrupted . | . . Combat Hostiles . | . . Parts Fried . | . . Impact Corruptions . | . . Robots Melted 1 | 1 . Combat Hostiles 1 | 1 . Parts Melted . | . . Heat Transferred 703 | 296 407 Parts Sabotaged . | . . Parts Stolen . | . . Parts Stripped . | . . Power Chain Reactions . | . . Alert | -11 -10 ------- Run | Yrd Mat Peak Influence 210 | 20 210 Initial 13 | . 13 Average 53 | 3 63 Maximum Alert Level 1 | . 1 Low Security (%) 99 | 100 99 Level 1 . | . . Level 2 . | . . Level 3 . | . . Level 4 . | . . Level 5 . | . . High Security . | . . Max Security . | . . Squads Dispatched 1 | . 1 Investigation . | . . Extermination . | . . Reinforcement 1 | . 1 Assault . | . . Garrison . | . . Intercept . | . . Searches Triggered . | . . Construction Impeded . | . . Haulers Reinforced . | . . Active Scanning Responses . | . . Cargo Convoy Interrupts . | . . Stealth | -11 -10 --------- Run | Yrd Mat Distress Signals 1 | . 1 Communications Jammed . | . . Distress Signals . | . . Times Spotted 14 | 1 13 Peak Tracking Total 4 | 1 4 Tactical Retreats . | . . Traps | -11 -10 ------- Run | Yrd Mat Traps Triggered . | . . Indirectly . | . . Trap Hack Attempts . | . . Triggered . | . . Disarmed . | . . Reprogrammed . | . . Reused . | . . Traps Extracted . | . . Installed . | . . Triggered . | . . Machines | -11 -10 ---------- Run | Yrd Mat Machines Disabled . | . . Max in Single Turn . | . . Machines Repaired . | . . Machines Dismantled . | . . Machines Sabotaged . | . . Overloaded Fab Kills . | . . Hacking | -11 -10 --------- Run | Yrd Mat Machines Accessed 1 | . 1 Terminals 1 | . 1 Fabricators . | . . Repair Stations . | . . Recycling Units . | . . Scanalyzers . | . . Garrison Access . | . . Total Hacks 3 | . 3 Successful 3 | . 3 Failed . | . . Catastrophic . | . . Database Lockouts . | . . Manual 1 | . 1 Terminals 3 | . 3 Fabricators . | . . Repair Stations . | . . Recycling Units . | . . Scanalyzers . | . . Garrison Access . | . . Terminal Hacks 3 | . 3 Record 1 | . 1 Alert Level 1 | . 1 Zone Layout 1 | . 1 Fabricator Hacks . | . . Repair Station Hacks . | . . Recycling Unit Hacks . | . . Scanalyzer . | . . Garrison Access Hacks . | . . Unauthorized Hacks . | . . Terminals . | . . Fabricators . | . . Repair Stations . | . . Recycling Units . | . . Scanalyzers . | . . Garrison Access . | . . Data Cores Recovered . | . . Used . | . . Hacking Detections 1 | . 1 Full Trace Events 1 | . 1 Feedback Events . | . . Feedback Blocked . | . . Robot Schematics Acquired . | . . Robots Built . | . . Authchips . | . . Time . | . . Total Robot Build Rating . | . . Part Schematics Acquired . | . . Parts Built . | . . Authchips . | . . Time . | . . Total Part Build Rating . | . . Parts Repaired . | . . Time . | . . Parts Recycled . | . . Recycled Matter . | . . Retrieved Matter . | . . Retrieved Components . | . . Parts Scanalyzed . | . . Part Schematics Acquired . | . . Parts Damaged . | . . Bothacking | -11 -10 ------------ Run | Yrd Mat Used RIF Installer . | . . Robots Hacked . | . . Non-combat . | . . Combat . | . . Robot Hacks Applied . | . . Relay Couplers Released . | . . Fabnet Peak Effective % . | . . Robots Rewired . | . . Allies Hacked . | . . Hacks Repelled . | . . Allies | -11 -10 -------- Run | Yrd Mat Total Allies . | . . Largest Group . | . . Highest-Rated Group . | . . Highest-Rated Ally . | . . Total Orders . | . . Ally Attacks . | . . Total Damage . | . . Kills . | . . Allies Corrupted . | . . Allies Melted . | . . Intel | -11 -10 ------- Run | Yrd Mat Robot Analysis Total . | . . Derelict Logs Recovered . | . . Drone Launches . | . . Drone Recoveries . | . . Exploration | -11 -10 ------------- Run | Yrd Mat Turns Passed 831 | 129 702 Spaces Moved 625 | 136 489 Core 61 | 50 11 Treads 2 | . 2 Legs . | . . Wheels 562 | 86 476 Hover . | . . Flight . | . . Fastest Speed 50 | 50 80 Average Speed 109 | 68 121 Slowest Speed 750 | 80 750 Overloaded Moves . | . . Propulsion Burnouts . | . . Robots Hopped . | . . Cave-ins Triggered . | . . Exploration Rate (%) 21 | 7 35 Regions Visited 1 Branch Regions . Pre-discovered Areas . | . . Known Exits Taken . | . . Unknown Exits Taken 1 | 1 . Scrap Searched . | . . Spaces Dug . | . . Terrain Destroyed 76 | . 76 Melee . | . . Projectile . | . . AOE 76 | . 76 Terrain Rammed . | . . Walls Destroyed . | . . Machines Disabled . | . . Actions | -11 -10 --------- Run | Yrd Mat Total 727 | 159 568 Wait 2 | . 2 Move 624 | 135 489 Hop . | . . Pick Up 45 | 9 36 Fast Attach 2 | . 2 Attach 13 | 7 6 Detach 2 | 2 . Swap 2 | . 2 Drop 9 | . 9 Fire 27 | 6 21 Melee . | . . Ram 1 | . 1 Kick . | . . Crush . | . . Escape Stasis . | . . Rewire . | . . Trap . | . . Miscellaneous . | . . Route ------- -11/Scrapyard -10/Materials (discovered 1 exit: [Min]) History --------- Turn | Location | Event 2 | -11/Scrapyard | Met Revision 17 86 | -11/Scrapyard | Discovered new exit (range 8) 130 | -11/Scrapyard | Entered Materials 310 | -10/Materials | Build established: Mutant 598 | -10/Materials | Discovered new exit (range 15) 798 | -10/Materials | Core integrity fell below 50% 820 | -10/Materials | Core integrity fell below 20% 825 | -10/Materials | Lost 5 parts (1p2n2w) 832 | -10/Materials | Destroyed by S-10 Pest with Light Assault Rifle Last Messages --------------- Destroyed Lgt. Ion Engine. S-10 Pest destroyed. R-06 Scavenger collects Wheel. Grenade Launcher destroyed. R-06 Scavenger collects Wheel. Med. Laser destroyed. R-06 Scavenger collects Lgt. Assault Rifle. Lgt. Ion Engine destroyed. R-06 Scavenger collects Structural Scanner. R-06 Scavenger collects Lgt. Ion Engine. Lgt. Treads destroyed. U-05 Engineer builds a Wall. U-05 Engineer lays Concrete. U-05 Engineer builds a Wall. U-05 Engineer lays Concrete. U-05 Engineer builds a Wall. U-05 Engineer lays Concrete. U-05 Engineer builds a Wall. U-05 Engineer lays Concrete. [Achievement: First Step to Greatness] Map ----- +----------------------------------------------------+ | ?????????????????????????????????????????????? | | ?????????????????????????????????????????????? | | ?????????????????????????????????????????????? | | ?????????????????????????????????????????????? | | ?????????????????????????????????????????????? | | ?????????????????????????????????????????????? | | ?????????????????????????????????????????????? | | ?????????????????????????????????????????????? | | ??????????????????????? ????????????????????? | | ????????????????????? ????????????????????? | | ????????????????????# ????????????????????? | | ????????????????????# ????????????????????? | | ????? ??????????????# ##??????????????????? | | ????? ??????????????# ?????????????????? | | ????? ?????????????# ??????????????????? | | ????? ?????????????# ??????????????????? | | ????? ????????????## ##?????????????????? | | ????# ???########### % #??????????????????? | | ????# #???# # #??????????????????? | | ????# #???# # #??????????????????? | | ????# #???# """ # ###????????????????? | | ????# #???# =! """ # +????????????????? | | ????# #???# = """ uu ##?????????????????? | | ????# #???# ! # #??????????????????? | | ???## #???# #??????????????????? | | ???# ##### @#??????????????????? | | ???## #############+ s ##### ########?????? | | ##### r% % s r ??? | | # ## ##??????????? | | #???????????? | | ########+# #############??????????? | | #??# ^ ##???####### ??????????? | | ### #??# """" ###### # ??????????? | | # #??# """" # # ??????????? | | # #??# """" + T # ??????????? | | # #### # # ??????????? | | " # ## """" ###### # ??????????? | | " # + """" #????## ## ??????????? | | " # ## """" #?????# ## ??????????? | | # ######### #?????# ## ??????????? | | " # #???????# ""#?????# ## ??????????? | | " # #???????# T"#?????# ## ??????????? | | " # #???????# ""#?????# ## ??????????? | | ## ##???????# #?????# ## ??????????? | | ## #?###############?????# ####??????????? | | #+## ### #########?????# #?# ??????????? | | # ### # #????## ### ??????????? | | # + #???## ## ??????????? | | # ### # #???# # ??????????? | | # ### #########???# # ??????????? | +----------------------------------------------------+ Best States ------------- Heat Dissipation 25 Energy Generation 10 Energy Capacity 125 Matter Stores 300 Matter Capacity 300 Sight Range 18 Terrain Scan Density 10 Evasion (%) 50 Item Schematics ----------------- None Robot Schematics ------------------ None Fabricated ------------ Nothing Alien Tech Used ----------------- None Achievements -------------- First Step to Greatness It's Just You Uninvited Guest Challenges ------------ None Game ------ Seed UltimatePointyBrace Manual? 0 Play Time 00:23:11 Cumulative 0.3 hours Start 2024.07.06 @ 14:56:49 End 2024.07.07 @ 08:01:28 Sessions 3 Manual Loads 0 Difficulty Rogue Special Mode None Game No. 1 Rogue 1 Adventurer 0 Explorer 0 Win Type - Total 0 Types 0/0/0/0/0/0/0/0/0 Lore% 0 Gallery% 1 Achievement% 1 Wizard Run 0 Options --------- Layout 1 ASCII 0 Keyboard 0 Movement Arrows Keybinds 0 Fullscreen 1 Font 32/Tamsyn Map View 50x35 Zoom Use 0% Tactical HUD 0 Map Filters NONE Filters NONE Steam 1 RUN: 875cf756-d150-4491-96bb-6858bf5fc031